Cogmind - Beta 16 @@@ ROGUE MODE // 2025.11.04 @ 15:45:55 Player: CDGotthats Result: Destroyed by X8-0H3(h) with Bolt Gun Performance ------------- Evolutions (0) 0 Regions Visited (3) 600 Robots Destroyed (3) 15 Value Destroyed (51) 51 Prototype IDs (0) 0 Alien Tech Used (0) 0 Bonus (800) 800 TOTAL SCORE: 1466 Bonus ------- Registered with UFD 300 Met Optimus in HQ 500 Cogmind --------- Core Integrity 0/250 Matter 378/400 Energy 76/250 System Corruption 2% Temperature Warm (102) Movement Treading (160) Location -7/Scraptown Parts ------- > --- POWER (1) -------- Ion Engine > --- PROPULSION (2) --- Light Treads > --- UTILITY (2) ------ Small Storage Unit Medium Matter Pod > --- WEAPON (2) ------- (None) > --- INVENTORY (8) ---- Light Ion Engine Overtuned Titanium Leg Overtuned Titanium Leg Peak State ------------ > --- POWER ------------ Light Deuterium Engine > --- PROPULSION ------- Overtuned Titanium Leg Overtuned Titanium Leg > --- UTILITY ---------- Small Storage Unit Medium Matter Pod > --- WEAPON ----------- Overtuned Pulse Rifle Assault Rifle > --- INVENTORY -------- Ion Engine Light Ion Engine Light Treads Light Treads [Rating: 15] Favorites ----------- Power Ion Engine Engine Ion Engine Propulsion Light Treads Treads Light Treads Leg Overtuned Titanium Leg Utility Small Storage Unit Storage Small Storage Unit Weapon Assault Rifle Energy Gun EM Pulse Gun Ballistic Gun Assault Rifle Build | -11 -10 -10 -7 ------- Run | Yrd Mat Sub Scr Slots Evolved . | . . . . Power . | . . . . Propulsion . | . . . . Utility . | . . . . Weapon . | . . . . Parts Attached 12 | 7 . . 5 Power 2 | 1 . . 1 Engine 2 | 1 . . 1 Core . | . . . . Reactor . | . . . . Propulsion 4 | 2 . . 2 Treads 2 | 2 . . . Leg 2 | . . . 2 Wheel . | . . . . Hover . | . . . . Flight . | . . . . Utility 2 | 2 . . . Device . | . . . . Storage 2 | 2 . . . Processor . | . . . . Hackware . | . . . . Protection . | . . . . Artifact . | . . . . Weapon 4 | 2 . . 2 Energy Gun 3 | 1 . . 2 Energy Cannon . | . . . . Ballistic Gun 1 | 1 . . . Ballistic Cannon . | . . . . Launcher . | . . . . Special Weapon . | . . . . Impact Weapon . | . . . . Slashing Weapon . | . . . . Piercing Weapon . | . . . . Special Melee Weapon . | . . . . Unidentified Prototypes . | . . . . Parts Lost 6 | . . . 6 Power 1 | . . . 1 Propulsion 1 | . . . 1 Utility . | . . . . Weapon 4 | . . . 4 Highest Loss Streak 6 | . . . 6 To Critical Strikes . | . . . . Average Backups 1 | 1 1 1 1 Power 1 | . 1 1 1 Propulsion . | . . . . Utility . | . . . . Weapon . | . . . . Tool/Special . | . . . . Unused Backups 2 | 1 . . 1 Power 1 | . . . 1 Propulsion . | . . . . Utility 1 | 1 . . . Weapon . | . . . . Tool/Special . | . . . . Average Slot Usage (%) 99 | . 100 100 99 Engine 14 | . 14 14 14 Treads 27 | . 28 28 27 Storage 28 | . 28 28 28 Energy Gun 13 | . 14 14 13 Ballistic Gun 13 | . 14 14 13 Peak Build Rating 15 | 7 7 7 15 Average Rating 6 | 5 7 7 7 On Entrance 5 | . 7 7 7 Avg Prop Armor Cover (%) 11 | . . . 11 Naked Turns . | . . . . Heaviest Build 17 | 16 16 16 17 Greatest Support 40 | 40 40 40 40 Greatest Overweight (x) . | . . . . Average Overweight (x) . | . . . . Largest Inventory Capacity 8 | 8 8 8 8 Average Capacity 7 | 7 8 8 8 Most Carried 5 | 2 1 1 5 Average Carried 1 | 1 1 1 1 Final Capacity 8 | 8 8 8 8 Final Carried 3 | 1 1 1 3 Class Distribution -------------------- 100% | Mutant Dominant Class ---------------- Mutant | -10/Materials Mutant | -10/Subcaves Mutant | -7/Scraptown Resources | -11 -10 -10 -7 ----------- Run | Yrd Mat Sub Scr Matter Collected 352 | 297 . . 55 Remotely . | . . . . Salvage Created 115 | 45 . . 70 Parts 9 | 5 . . 4 Haulers Intercepted . | . . . . Recyclers Shooed . | . . . . Parts Field Recycled . | . . . . Retrieved Matter . | . . . . Parts Self-Destructed . | . . . . Prevented . | . . . . Parts Restored . | . . . . Kills | -11 -10 -10 -7 ------- Run | Yrd Mat Sub Scr Combat Hostiles Destroyed 1 | . . . 1 Guns 1 | . . . 1 Classes Destroyed 2 | 1 . . 1 Worker 2 | 2 . . . Scrapper 1 | . . . 1 Best Kill Streak 1 | 1 . . 1 Combat Bots Only 1 | . . . 1 Max Kills in Single Turn 1 | 1 . . 1 Gunslinging . | . . . . Exploded . | . . . . Melee . | . . . . Uniques/NPCs Destroyed . | . . . . Combat | -11 -10 -10 -7 -------- Run | Yrd Mat Sub Scr Hostile Shots Fired 83 | . . . 83 Missed 18 | . . . 18 Hits 65 | . . . 65 Melee 4 | . . . 4 Projectile 61 | . . . 61 Critical Strikes 5 | . . . 5 Damage Taken 1184 | 23 . . 1161 Core 251 | . . . 251 Absorbed by Shields . | . . . . Regen/Repaired (Parts) 35 | . . . 35 Core Remaining (%) 100 | 100 . . . Volleys Fired 10 | 5 . . 5 Largest 2 | 2 . . 2 Hottest 100 | 60 . . 100 Shots Fired 17 | 10 . . 7 Gun 17 | 10 . . 7 Cannon . | . . . . Launcher . | . . . . Special . | . . . . Kinetic 10 | 5 . . 5 Thermal 2 | . . . 2 Explosive . | . . . . Electromagnetic 5 | 5 . . . Robot Hit Streak 6 | 4 . . 6 Robot Miss Streak 2 | 2 . . 1 Penetration Max . | . . . . Secondary Targets . | . . . . Shots Hit Robots 12 | 6 . . 6 Core Hits 4 | 2 . . 2 Critical Kills . | . . . . Critical Parts Destroyed . | . . . . Critical Strikes . | . . . . Melee Attacks . | . . . . Impact . | . . . . Slashing . | . . . . Piercing . | . . . . Sneak Attacks . | . . . . Combat Hostiles . | . . . . Follow-up Attacks . | . . . . Damage Inflicted 232 | 110 . . 122 Guns 160 | 64 . . 96 Cannons . | . . . . Explosions 46 | 46 . . . Melee . | . . . . Ramming 26 | . . . 26 Kinetic 74 | 24 . . 50 Thermal 92 | 46 . . 46 Explosive . | . . . . Electromagnetic 40 | 40 . . . Impact . | . . . . Slashing . | . . . . Piercing . | . . . . Highest Corruption 2 | . . . 2 Average Corruption 1 | . . . 1 Corruption Purged . | . . . . Corruption Blocked . | . . . . Overload Shots . | . . . . Overflow Damage . | . . . . Projectiles . | . . . . Explosions . | . . . . Melee . | . . . . Knockbacks 2 | . . . 2 Impact 2 | . . . 2 Kinetic . | . . . . Secondary . | . . . . Self-Inflicted Damage 23 | 23 . . . Shots 1 | 1 . . . Rammed 1 | . . . 1 Targets Rammed 5 | . . . 5 Kicked 4 | . . . 4 Crushed . | . . . . Highest Temperature 172 | 12 . . 172 Average Temperature 76 | 12 . . 81 Received Heat Transfer 536 | . . . 536 Siege Activations . | . . . . Martial Activations . | . . . . Shielding Activations . | . . . . Robots Disrupted . | . . . . Combat Hostiles . | . . . . Robots Corrupted . | . . . . Combat Hostiles . | . . . . Parts Fried . | . . . . Impact Corruptions . | . . . . Robots Melted . | . . . . Combat Hostiles . | . . . . Parts Melted . | . . . . Heat Transferred 137 | 50 . . 87 Parts Sabotaged . | . . . . Parts Stolen . | . . . . Parts Stripped . | . . . . Power Chain Reactions 1 | 1 . . . Alert | -11 -10 -10 -7 ------- Run | Yrd Mat Sub Scr Maximum Alert Level . | . . . . Low Security (%) 100 | 100 100 . . Level 1 . | . . . . Level 2 . | . . . . Level 3 . | . . . . Level 4 . | . . . . Level 5 . | . . . . High Security . | . . . . Max Security . | . . . . Peak Influence 5 | 5 . . . Initial . | . . . . Average . | . . . . Influence Increases 10 | 10 . . . Destroy 0b10 Robot/NC 10 | 10 . . . Influence Decreases 10 | 10 . . . Time Decay 10 | 10 . . . Squads Dispatched . | . . . . Investigation . | . . . . Extermination . | . . . . Reinforcement . | . . . . Assault . | . . . . Garrison . | . . . . Intercept . | . . . . Searches Triggered . | . . . . Construction Impeded . | . . . . Haulers Reinforced . | . . . . Active Scanning Responses . | . . . . Cargo Convoy Interrupts . | . . . . Stealth | -11 -10 -10 -7 --------- Run | Yrd Mat Sub Scr Distress Signals . | . . . . Communications Jammed . | . . . . Distress Signals . | . . . . Times Spotted 24 | . . . 24 Peak Tracking Total 13 | . . . 13 Tactical Retreats . | . . . . Traps | -11 -10 -10 -7 ------- Run | Yrd Mat Sub Scr Traps Triggered . | . . . . Indirectly . | . . . . Trap Hack Attempts . | . . . . Triggered . | . . . . Disarmed . | . . . . Reprogrammed . | . . . . Reused . | . . . . Traps Extracted . | . . . . Installed . | . . . . Triggered . | . . . . Machines | -11 -10 -10 -7 ---------- Run | Yrd Mat Sub Scr Machines Disabled . | . . . . Max in Single Turn . | . . . . Machines Repaired . | . . . . Machines Dismantled . | . . . . Machines Sabotaged . | . . . . Overloaded Fab Kills . | . . . . Hacking | -11 -10 -10 -7 --------- Run | Yrd Mat Sub Scr Machines Accessed 4 | . . . 4 Terminals . | . . . . Fabricators . | . . . . Repair Stations . | . . . . Recycling Units . | . . . . Scanalyzers . | . . . . Garrison Access . | . . . . Total Hacks 31 | . . . 31 Successful 31 | . . . 31 Failed . | . . . . Catastrophic . | . . . . Database Lockouts . | . . . . Manual 1 | . . . 1 Terminals . | . . . . Fabricators . | . . . . Repair Stations . | . . . . Recycling Units . | . . . . Scanalyzers . | . . . . Garrison Access . | . . . . Terminal Hacks 31 | . . . 31 Record 31 | . . . 31 Fabricator Hacks . | . . . . Repair Station Hacks . | . . . . Recycling Unit Hacks . | . . . . Scanalyzer . | . . . . Garrison Access Hacks . | . . . . Unauthorized Hacks . | . . . . Terminals . | . . . . Fabricators . | . . . . Repair Stations . | . . . . Recycling Units . | . . . . Scanalyzers . | . . . . Garrison Access . | . . . . Data Cores Recovered . | . . . . Used . | . . . . Hacking Detections . | . . . . Full Trace Events . | . . . . Feedback Events . | . . . . Feedback Blocked . | . . . . Robot Schematics Acquired . | . . . . Robots Built . | . . . . Authchips . | . . . . Time . | . . . . Total Robot Build Rating . | . . . . Part Schematics Acquired . | . . . . Parts Built . | . . . . Authchips . | . . . . Time . | . . . . Total Part Build Rating . | . . . . Part Studies Acquired . | . . . . Parts Repaired . | . . . . Time . | . . . . Parts Recycled . | . . . . Recycled Matter . | . . . . Retrieved Matter . | . . . . Retrieved Components . | . . . . Parts Scanalyzed . | . . . . Part Schematics Acquired . | . . . . Parts Damaged . | . . . . Bothacking | -11 -10 -10 -7 ------------ Run | Yrd Mat Sub Scr Used RIF Installer . | . . . . Robots Hacked . | . . . . Non-combat . | . . . . Combat . | . . . . Robot Hacks Applied . | . . . . Relay Couplers Released . | . . . . Fabnet Peak Effective % . | . . . . Robots Rewired . | . . . . Allies Hacked . | . . . . Hacks Repelled . | . . . . Allies | -11 -10 -10 -7 -------- Run | Yrd Mat Sub Scr Total Allies . | . . . . Largest Group . | . . . . Highest-Rated Group . | . . . . Highest-Rated Ally . | . . . . Total Orders . | . . . . Ally Attacks . | . . . . Total Damage . | . . . . Kills . | . . . . Allies Corrupted . | . . . . Allies Melted . | . . . . Intel | -11 -10 -10 -7 ------- Run | Yrd Mat Sub Scr Active Infowar (turns) . | . . . . Robot Analysis Total . | . . . . Derelict Logs Recovered . | . . . . Drone Launches . | . . . . Drone Recoveries . | . . . . Exploration | -11 -10 -10 -7 ------------- Run | Yrd Mat Sub Scr Turns Passed 4821 | 1463 48 262 3048 Spaces Moved 2370 | 364 20 131 1855 Core 3 | 3 . . . Treads 2355 | 361 20 131 1843 Legs 12 | . . . 12 Wheels . | . . . . Hover . | . . . . Flight . | . . . . Fastest Speed 50 | 50 160 160 100 Average Speed 159 | 159 160 160 159 Slowest Speed 160 | 160 160 160 160 Overloaded Moves . | . . . . Propulsion Burnouts . | . . . . Robots Hopped . | . . . . Potential Cave-ins . | . . . . Cave-ins Triggered . | . . . . Exploration Rate (%) 34 | 31 6 17 85 Regions Visited 3 Branch Regions 2 Pre-discovered Areas . | . . . . Known Exits Taken . | . . . . Unknown Exits Taken 3 | 1 1 1 . Scrap Searched . | . . . . Spaces Dug . | . . . . Terrain Destroyed 4 | 4 . . . Melee . | . . . . Projectile . | . . . . AOE 4 | 4 . . . Terrain Rammed . | . . . . Walls Destroyed . | . . . . Machines Disabled . | . . . . Actions | -11 -10 -10 -7 --------- Run | Yrd Mat Sub Scr Total 3391 | 1236 36 184 1935 Wait 982 | 857 17 54 54 Move 2367 | 363 19 130 1855 Hop . | . . . . Pick Up 4 | 3 . . 1 Fast Attach 10 | 6 . . 4 Attach 6 | 1 . . 5 Detach 6 | . . . 6 Swap . | . . . . Drop 1 | 1 . . . Fire 10 | 5 . . 5 Melee . | . . . . Ram . | . . . . Kick 4 | . . . 4 Crush 1 | . . . 1 Escape Stasis . | . . . . Rewire . | . . . . Trap . | . . . . Miscellaneous . | . . . . Route ------- -11/Scrapyard -10/Materials -10/Subcaves -7/Scraptown (discovered 1 exit: [*Fac]) History --------- Turn | Location | Event 11 | -11/Scrapyard | Discovered new exit (range 16) 1464 | -11/Scrapyard | Entered Materials 1465 | -10/Materials | Met a group of wandering Federalists 1482 | -10/Materials | Build established: Mutant 1509 | -10/Materials | Discovered new exit (range 3) 1512 | -10/Materials | Entered Subcaves 1512 | -10/Subcaves | Accompanied by 2 allies 1513 | -10/Subcaves | Continued accompanying wandering Federalists (5) 1737 | -10/Subcaves | Wandering Federalist uncovered a shortcut to Scraptown 1774 | -10/Subcaves | Entered Scraptown 2684 | -7/Scraptown | Visited Spacefarers 2790 | -7/Scraptown | Visited Assassins FH 3040 | -7/Scraptown | Visited UFD Registry 3053 | -7/Scraptown | Visited Symbiants 3155 | -7/Scraptown | Visited CR-KLE's Repair Center 3167 | -7/Scraptown | CR-KLE repaired 2 parts 3199 | -7/Scraptown | Visited Fellowship of the Rings 3295 | -7/Scraptown | Discovered new exit (range 5) 3655 | -7/Scraptown | Visited Shadow of the Wyrm 3753 | -7/Scraptown | Registered with UFD as "Metapod" 3799 | -7/Scraptown | Visited DA-N13 Charitable Foundation 3847 | -7/Scraptown | Visited Scrap Suit Storage 4436 | -7/Scraptown | Visited Chapter 10 4548 | -7/Scraptown | Met Optimus 4548 | -7/Scraptown | Accepted into 0bPrime 4748 | -7/Scraptown | Civil war broke out across Scraptown 4805 | -7/Scraptown | Optimus destroyed in the chaos of civil war 4812 | -7/Scraptown | Core integrity fell below 50% 4821 | -7/Scraptown | Core integrity fell below 20% 4822 | -7/Scraptown | Destroyed by X8-0H3(h) with Bolt Gun Last Messages --------------- [Achievement: For Emergencies Only] Penetrated by Bolt. Kicked BQ-4LY(x). Penetrated by Bolt. Kicked BQ-4LY(x). BQ-4LY(x) knocked back. Penetrated by Bolt. Lgt. Deuterium Engine destroyed. Ovr. Pulse Rifle destroyed. Penetrated by Bolt. Critical hit (Burn: +37). Penetrated by Bolt. Critical hit (Burn: +37). Ovr. Pulse Rifle destroyed. Critical hit (Burn: +50). Bolt penetrates BQ-4LY(x). Critical hit (Burn: +37). Penetrated by Bolt. Lgt. Treads destroyed. Slammed into BQ-4LY(x). Map ----- +----------------------------------------------------+ | #?# ##""""" """""#???????????#####?????? | | #?# ##""""" """""#??????????"""""#?????? | | #?# ##"""" """""#?????????? = #?????? | | #?# ## #??????????? ???????? | | #?# ## #???????????? ????????? | | #?# ## #????????????# #????????? | | ########## ########### ####???????##### ########## | | #???????#"""" """""""""" | | #???????#" | | #???????#" | | #???????#" | | #???????#" | | ################# #???#####" | | #?????########### #???#"""" """"""""" | | #?????#"""""""" # h #???#"""" """"""""" | | #?????#""""""" # #???#"""" ""###### | | #?????#"" # #???#"""" ""# | | #?????#"" # h #???#"""" ""# | | #?????#""" # ###?#"""" ""# "" | | #?????#"X # %!""#"#"""" ""# "" | | #?????#"" # *%="""#"""" ""# " | | #?????#""" # =%""#######" "" " | | #?????#"" ! # = !###?????#" "" " | | #?????#"" [%*!#[ !!%!!######### % # " | | #?????#""""""=[=%! *%/!x%% =%= [ ""# "" | | #?????#""""""""*;= **=%=@[ !! # "" | | #?????########### !%!![ "# | | #???????????????# =g=!! " # | | ###############;; TT =* ""###### | | p TTjg %! """"""""" | | =% =! """"""""" | | % | | !! =! | | !% = *%! | | #""""#"!%*!%=[! | | %! #????#" [ ! | | * [ != #????#""""""%"""""""" | | ############%######;###!%!;###????#######!######## | | ## ##??# =g;?????????# * #???? | | ## #???# ;?????????# #???? | | "## #???# #?????????# #???? | | "## #???# #?????????# $ $ #???? | | "## #???# #?????????# ## #???? | | """""""###" "#???# #?????????# ## #???? | | "#?## " " ##???# #?????????##########???? | | ##??# # # #????# #??????????????????????? | | #???########????#! #??????????????????????? | | #######???????????????# = #??????????????????????? | | ??????????????????????# #??????????????????????? | | ???????????############ #??????????????????????? | +----------------------------------------------------+ Best States ------------- Heat Dissipation 25 Energy Generation 14 Energy Capacity 250 Matter Stores 400 Matter Capacity 400 Sight Range 16 Terrain Scan Density 10 Evasion (%) 52 Recoil Reduction 2 Item Schematics ----------------- None Robot Schematics ------------------ None Fabricated ------------ Nothing Repaired ---------- Nothing Studied --------- None Alien Tech Used ----------------- None Achievements -------------- Civilization 2243 DATA ERROR: Steam Global Achievement% For Emergencies Only Link The Feds Organ Harvest Strength In Numbers There's More Where That Came From Challenges ------------ None Game ------ Seed AntigravWeaponProjector Manual? 0 Play Time 01:09:06 Cumulative 18.2 hours Start 2025.11.04 @ 14:22:12 End 2025.11.04 @ 15:45:55 Sessions 1 Manual Loads 0 Difficulty Rogue Special Mode None Game No. 12 Rogue 4 Adventurer 8 Explorer 0 Win Type - Total 0 Types 0/0/0/0/0/0/0/0/0/0 Lore% 13 Gallery% 16 Achievement% 9 Wizard Run 0 Options --------- Layout 0 ASCII 0 Keyboard 1 Movement Numpad Keybinds 0 Fullscreen 1 Font 18/X11 Map View 76x50 Zoom Use 0% Tactical HUD 0 Map Filters NONE Filters NONE Steam 1 RUN: 8d6f0cd8-67e7-4288-9b9c-b679c69b6d2e